{"text_format":"3","workbook":"xlsx","n_sheets":1,"sheets":["Поставщик"],"not_rendered":{"macros":1,"defined_names":17},"read":"whole","date_system":"1900"}

{"sheet":"Поставщик","index":0,"n_rows":28,"n_cols":13,"rows_kept":28,"merged":[[1,9,1,15],[2,9,2,12],[2,13,2,19],[4,4,4,8],[6,0,6,11],[7,2,7,11],[8,0,9,0],[8,1,9,4],[8,5,9,5],[8,6,9,6],[8,7,9,7],[8,8,8,9],[8,10,9,10],[8,11,9,11],[8,12,9,12],[10,1,10,4],[11,1,11,4],[12,1,12,4],[13,1,13,4],[14,1,14,4],[16,2,16,3],[16,4,16,12],[17,2,17,3],[17,4,17,12],[18,2,18,3],[18,4,18,12],[19,2,19,3],[19,4,19,12],[20,2,20,3],[20,4,20,12],[21,2,21,3],[21,4,21,12],[22,2,22,3],[22,4,22,12],[23,2,23,3],[23,4,23,12],[24,2,24,3],[24,4,24,12],[26,1,26,2],[26,10,26,11],[27,3,27,4],[27,13,27,16]]}
[]
[{"$nulls":9},"Приложение 1 к Договору № ВНП-2017/ от \"___\"__________ 20___г."]
[]
[]
[{"$nulls":4},"СПЕЦИФИКАЦИЯ №1"]
[]
["Открытое Акционерное общество \"ВНИПИнефть\",  в лице  Генерального директора Сергеева Дениса Анатольевича, действующего на основании Устава, именуемое в дальнейшем \"Покупатель\", с одной стороны  и __________________________________ в лице _________________________________________________, действующего на основании _____________, именуемое в дальнейшем \"Поставщик\", с другой стороны, договорились о нижеследующем:"]
[null,"1.","Поставщик передает в собственность Покупателя, а Покупатель принимает и оплачивает Товар согласно настоящей Спецификации."]
["№ п\\п","Наименование номенклатуры",{"$nulls":3},"Ед.      изм.","Кол-во","Срок поставки","Цена в руб.",null,"Сумма в руб. (без НДС)","НДС в руб.","Сумма в руб. (с НДС)"]
[{"$nulls":8},"без  НДС","с НДС"]
["1"," ",{"$nulls":3},"шт.",null,"3 недели дней со дня заключения договора",null,{"$f":"I11*1.18","v":{"v":0,"d":"0.00"}},{"$f":"I11*G11","v":{"v":0,"d":"0.00"}},{"$f":"M11-K11","v":{"v":0,"d":"0.00"}},{"$f":"J11*G11","v":{"v":0,"d":"0.00"}}]
[2,{"$nulls":4},"шт.",null,"3 недели дней со дня заключения договора",null,{"$f":"I12*1.18","v":{"v":0,"d":"0.00"}},{"v":0,"d":"0.00"},{"$f":"M12-K12","v":{"v":0,"d":"0.00"}},{"v":0,"d":"0.00"}]
[3,{"$nulls":4},"шт.",null,"3 недели дней со дня заключения договора",null,{"v":0,"d":"0.00"},{"v":0,"d":"0.00"},{"v":0,"d":"0.00"},{"v":0,"d":"0.00"}]
[4," ",{"$nulls":3},"шт.",null,"3 недели дней со дня заключения договора",null,{"v":0,"d":"0.00"},{"v":0,"d":"0.00"},{"v":0,"d":"0.00"},{"v":0,"d":"0.00"}]
[null,"ИТОГО:",{"$nulls":3},"шт.",{"$f":"SUM(G11:G14)","v":0},{"$nulls":3},{"$f":"SUM(K11:K14)","v":{"v":0,"d":"0.00"}},{"v":0,"d":"0.00"},{"$f":"SUM(M11:M14)","v":{"v":0,"d":"0.00"}}]
[]
[null,"2.","Базис поставки",null,"Пункт назначения"]
[null,"3.","Дата поставки и переход права собственности",null,"Дата подписания документов о приемке товара."]
[null,"4.","Порядок и сроки оплаты",null,"Оплата за поставленный Товар осуществляется в течение  45 календарных дней, но не позднее 60 календарных дней, с даты исполнения обязательств по поставке Товара и получения Покупателем документов, указанных в Договоре № _________  от ______________ (в зависимости от того, что произойдет позднее), и при условии предоставления оригинала счета-фактуры и товарной накладной не позднее, чем за 10 (десять) дней до наступления последнего дня срока оплаты."]
[null,"5.","Адрес поставки/Пункт назначения\n",null,"105005, г. Москва, ул. Фридриха Энгельса, д.32 стр. 1 тел.(495) 795-31-30 доб.4472\n\n"]
[null,"6.","Отгрузочные реквизиты грузополучателя",null,"105005, г. Москва, ул. Фридриха Энгельса, д.32 стр. 1\n\n"]
[null,"7.","Валюта платежа\n",null,"Российский рубль."]
[null,"8.","Условие комплектности ",null," п. 7.1 настоящего Договора"]
[null,"9.","Гарантийный срок",null,"12 месяцев с даты подписания бухгалтерских документов"]
[null,"10.","Опцион Покупателя ",null,"(+) 0%  от общего количества Товара в стоимостном выражении;\n(-) 0%  от общего количества Товара в стоимостном выражении"]
[]
[null,"Поставщик",{"$nulls":8},"Покупатель"]
[null,null,"_______________________/______________/","/_______________/",{"$nulls":7},"_______________________/Сергеев Д.А./"]